bitfinex/quotes_BTCUSD_20240729
["timestamp","ask_amount","ask_price","bid_price","bid_amount"]
[1722229385290,0.00123347,69575.0,69574.0,1.596365]
[1722229385575,0.00123347,69575.0,69574.0,1.604051]
[1722229385783,0.00123347,69575.0,69574.0,1.600851]
[1722229386356,0.00123347,69575.0,69574.0,1.604051]
[1722229388026,0.14893347,69575.0,69574.0,1.212865]
[1722229388228,0.14893347,69575.0,69574.0,1.296365]
[1722229388468,0.14893347,69575.0,69574.0,1.304051]
[1722229388667,0.12663213,69575.0,69574.0,1.304051]
[1722229388879,0.0811,69575.0,69574.0,1.304051]
[1722229391661,0.1442,69575.0,69574.0,1.016395]
[1722229393098,0.1442,69575.0,69574.0,1.002395]
[1722229393919,0.1442,69575.0,69574.0,1.016395]
[1722229398549,0.1442,69575.0,69574.0,1.13587356]
[1722229398904,0.14459329,69575.0,69574.0,1.13587356]
[1722229399109,0.14459329,69575.0,69574.0,1.13587247]
[1722229399428,0.14459329,69575.0,69574.0,1.016395]
[1722229399690,0.14459329,69575.0,69574.0,1.13587443]
[1722229399831,0.14459329,69575.0,69574.0,1.13587336]
[1722229400035,0.14459329,69575.0,69574.0,0.990512]
[1722229400659,0.23690729,69575.0,69574.0,0.200602]
[1722229400842,0.23690729,69575.0,69574.0,0.372955]
[1722229401065,0.23690729,69575.0,69574.0,0.028]
[1722229401263,0.23690729,69575.0,69574.0,0.142985]
[1722229401404,0.23690729,69575.0,69574.0,0.128985]
[1722229401604,0.23690729,69575.0,69574.0,0.358955]
[1722229401931,0.23690729,69575.0,69574.0,0.344955]
[1722229402135,0.14459329,69575.0,69574.0,0.358955]
[1722229402335,0.23690729,69575.0,69574.0,0.372955]
[1722229402493,0.23690729,69575.0,69574.0,0.588925]
[1722229402494,0.14459329,69575.0,69574.0,0.588925]
[1722229402693,0.14459329,69575.0,69574.0,0.574925]
[1722229402896,0.14459329,69575.0,69574.0,0.356955]
[1722229403884,0.14459329,69575.0,69574.0,0.586925]
[1722229404451,0.14459329,69575.0,69574.0,0.356955]
[1722229405269,0.18690729,69575.0,69574.0,0.356955]
[1722229405474,0.18690729,69575.0,69574.0,0.586925]
[1722229405670,0.18690729,69575.0,69574.0,0.356955]
[1722229406540,0.18690729,69575.0,69574.0,0.586925]
[1722229406984,0.18690729,69575.0,69574.0,0.356955]
[1722229407212,0.18690729,69575.0,69574.0,0.586925]
[1722229407446,0.22995568,69575.0,69574.0,0.356955]
[1722229407723,0.27995568,69575.0,69574.0,0.356955]
[1722229408107,0.27995568,69575.0,69574.0,0.367955]
[1722229408415,0.23690729,69575.0,69574.0,0.367955]
[1722229408626,0.23690729,69575.0,69574.0,0.023]
[1722229408823,0.30151463,69575.0,69574.0,0.023]
[1722229409020,0.23690729,69575.0,69574.0,0.137985]
[1722229409369,0.27305275,69575.0,69574.0,0.137985]
[1722229409578,0.23073875,69575.0,69574.0,0.597925]
[1722229409779,0.32305275,69575.0,69574.0,0.597925]
[1722229410039,0.23073875,69575.0,69574.0,0.597925]
[1722229410243,0.32305275,69575.0,69574.0,0.597925]
[1722229411703,0.33305275,69575.0,69574.0,0.597925]
[1722229412337,0.33306712,69575.0,69574.0,0.597925]
[1722229412536,0.24690729,69575.0,69574.0,0.597925]
[1722229413603,0.15459329,69575.0,69574.0,0.597925]
[1722229413813,0.2192043,69575.0,69574.0,0.597925]
[1722229414036,0.15459329,69575.0,69574.0,0.597925]
[1722229414429,0.19766519,69575.0,69574.0,0.597925]
[1722229414664,0.15459329,69575.0,69574.0,0.597925]
[1722229414831,0.24690729,69575.0,69574.0,0.597925]
[1722229415048,0.3115183,69575.0,69574.0,0.597925]
[1722229415658,0.24500005,69575.0,69574.0,0.597925]
[1722229415851,0.30960486,69575.0,69574.0,0.597925]
[1722229416050,0.24500005,69575.0,69574.0,0.597925]
[1722229416185,0.30960486,69575.0,69574.0,0.597925]
[1722229416386,0.24500005,69575.0,69574.0,0.597925]
[1722229416734,0.19500005,69575.0,69574.0,0.367955]
[1722229416892,0.24500005,69575.0,69574.0,0.597925]
[1722229417276,0.19500005,69575.0,69574.0,0.597925]
[1722229417573,0.24500005,69575.0,69574.0,0.597925]
[1722229418734,0.19500005,69575.0,69574.0,0.597925]
[1722229418932,0.24500005,69575.0,69574.0,0.597925]
[1722229419345,0.19500005,69575.0,69574.0,0.597925]
[1722229419523,0.24500005,69575.0,69574.0,0.597925]
[1722229420112,0.28806441,69575.0,69574.0,0.597925]
[1722229421029,0.24500005,69575.0,69574.0,0.597925]
[1722229423576,0.24500005,69575.0,69574.0,0.827895]
[1722229423577,0.08958605,69575.0,69574.0,0.827895]
[1722229423761,0.08958605,69575.0,69574.0,0.911395]
[1722229425267,0.13265669,69575.0,69574.0,0.911395]
[1722229425476,0.05346393,69575.0,69574.0,0.911395]
[1722229425683,0.01039329,69575.0,69574.0,0.911395]
[1722229426237,0.01039329,69575.0,69574.0,1.203465]
[1722229426582,0.01039329,69575.0,69574.0,1.232315]
[1722229427036,0.01039329,69575.0,69574.0,1.221315]
[1722229427330,0.01039329,69575.0,69574.0,1.223315]
[1722229427661,0.01039329,69575.0,69574.0,1.237315]
[1722229427875,0.01039329,69575.0,69574.0,1.510971]
[1722229428189,0.01039329,69575.0,69574.0,1.517285]
[1722229428700,0.01039329,69575.0,69574.0,1.617285]
[1722229429716,0.01039329,69575.0,69574.0,1.624971]
[1722229429928,0.00084,69581.0,69574.0,1.624971]
[1722229429929,0.00084,69581.0,69580.0,1.384516]
[1722229430127,0.00084,69581.0,69580.0,1.68748299]
[1722229430993,0.00084,69581.0,69580.0,1.67979699]
[1722229431200,0.00084,69581.0,69580.0,1.69379699]
[1722229432065,0.00084,69581.0,69580.0,1.67979699]
[1722229432276,0.00084,69581.0,69580.0,1.69379699]
[1722229432503,0.0081,69590.0,69589.0,1.084044]
[1722229432739,0.0081,69590.0,69589.0,1.555151]
[1722229433376,0.0081,69590.0,69589.0,1.813922]
[1722229433589,0.0081,69590.0,69589.0,1.93336362]
[1722229434439,0.0081,69590.0,69589.0,1.93336248]
[1722229434658,0.0081,69590.0,69589.0,1.813922]
[1722229434883,0.0081,69590.0,69589.0,1.8230952]
[1722229435318,0.0081,69590.0,69589.0,1.9480952]
[1722229435751,0.0081,69590.0,69589.0,1.9620952]
[1722229436391,0.0081,69590.0,69589.0,1.9480952]
[1722229436624,0.0081,69590.0,69589.0,1.9620952]
[1722229437000,0.0081,69590.0,69589.0,1.9480952]
[1722229437952,0.0081,69590.0,69589.0,1.7181742]
[1722229438543,0.0081,69590.0,69589.0,1.7321742]
[1722229438776,0.0081,69590.0,69589.0,1.7181742]
[1722229439215,0.0081,69590.0,69589.0,1.6827742]
[1722229439425,0.0081,69590.0,69589.0,1.6687742]
[1722229439881,0.0081,69590.0,69589.0,1.6539242]
[1722229440540,0.0081,69590.0,69589.0,1.6679242]
[1722229441324,1e-08,69590.0,69589.0,1.6679242]
[1722229441764,1e-08,69590.0,69589.0,1.7160242]
[1722229443816,1e-08,69590.0,69589.0,1.7083382]
[1722229444231,1e-08,69590.0,69589.0,1.7300242]
[1722229444672,1e-08,69590.0,69589.0,1.7160242]
[1722229444886,1e-08,69590.0,69589.0,1.6539242]
[1722229445050,1e-08,69590.0,69589.0,1.6679242]
[1722229445256,1e-08,69590.0,69589.0,1.1718172]
[1722229445467,1e-08,69590.0,69589.0,1.4718172]
[1722229445615,1e-08,69590.0,69589.0,1.5155032]
[1722229445818,1e-08,69590.0,69589.0,1.1438172]
[1722229446021,0.07640001,69590.0,69589.0,1.2155032]
[1722229446226,0.07640001,69590.0,69589.0,1.1938172]
[1722229446648,0.07640001,69590.0,69589.0,1.2078172]
[1722229447344,0.07640001,69590.0,69589.0,1.4303172]
[1722229447546,1e-08,69590.0,69589.0,1.4303172]
[1722229447944,1e-08,69590.0,69589.0,1.4163172]
[1722229448689,1e-08,69590.0,69589.0,1.4172412]
[1722229450971,1e-08,69590.0,69589.0,1.4389272]
[1722229452589,1e-08,69590.0,69589.0,1.3812412]
[1722229453008,0.06110001,69590.0,69589.0,1.4312412]
[1722229453267,1e-08,69590.0,69589.0,1.4312412]
[1722229453481,1e-08,69590.0,69589.0,1.4389272]
[1722229453707,1e-08,69590.0,69589.0,1.4312412]
[1722229454125,1e-08,69590.0,69589.0,1.4389272]
[1722229454567,1e-08,69590.0,69589.0,1.3889272]
[1722229454789,1e-08,69590.0,69589.0,1.4389272]
[1722229455481,1e-08,69590.0,69589.0,1.55068563]
[1722229455716,1e-08,69590.0,69589.0,1.55837163]
[1722229455970,1e-08,69590.0,69589.0,1.55068563]
[1722229457101,1e-08,69590.0,69589.0,1.50068563]
[1722229457335,1e-08,69590.0,69589.0,1.55068563]
[1722229458220,1e-08,69590.0,69589.0,1.50068563]
[1722229458653,1e-08,69590.0,69589.0,1.3812412]
[1722229458874,1e-08,69590.0,69589.0,1.55068563]
[1722229459101,1e-08,69590.0,69589.0,1.50068563]
[1722229459567,1e-08,69590.0,69589.0,1.55068563]
[1722229460037,0.08180001,69590.0,69589.0,1.50068563]
[1722229460275,0.08180001,69590.0,69589.0,1.57953563]
[1722229461001,0.08180001,69590.0,69589.0,1.52953563]
[1722229461220,0.08180001,69590.0,69589.0,1.09111463]
[1722229461221,0.14440001,69590.0,69589.0,1.09111463]
[1722229461478,0.14440001,69590.0,69589.0,0.8428202]
[1722229462432,0.14440001,69590.0,69589.0,0.8148202]
[1722229462655,0.14440001,69590.0,69589.0,0.8288202]
[1722229462894,0.14440001,69590.0,69589.0,0.8428202]
[1722229463369,0.14440001,69590.0,69589.0,0.9428202]
[1722229472842,0.18671401,69590.0,69589.0,0.0380972]
[1722229473022,0.18671401,69590.0,69589.0,0.028924]
[1722229473023,0.35367301,69590.0,69589.0,0.028924]
[1722229473196,0.19567496,69590.0,69589.0,0.028924]
[1722229473402,0.19870916,69590.0,69589.0,0.143884]
[1722229473780,0.30641287,69590.0,69589.0,0.143884]
[1722229473926,0.30641175,69590.0,69589.0,0.143884]
[1722229474129,0.30641175,69590.0,69589.0,0.129884]
[1722229474130,0.18671401,69590.0,69589.0,0.129884]
[1722229474543,0.29440149,69590.0,69589.0,0.141884]
[1722229475146,0.18671401,69590.0,69589.0,0.141884]
[1722229475321,0.27286168,69590.0,69589.0,0.141884]
[1722229475521,0.18671401,69590.0,69589.0,0.141884]
[1722229475723,0.27286872,69590.0,69589.0,0.141884]
[1722229476151,0.18671401,69590.0,69589.0,0.127884]
[1722229476376,0.27285788,69590.0,69589.0,0.127884]
[1722229476576,0.27285788,69590.0,69589.0,0.138884]
[1722229476577,0.18671401,69590.0,69589.0,0.138884]
[1722229476791,0.27285728,69590.0,69589.0,0.138884]
[1722229477644,0.18671401,69590.0,69589.0,0.138884]
[1722229478279,0.25130597,69590.0,69589.0,0.368805]
[1722229479406,0.25130597,69590.0,69589.0,0.138884]
[1722229480066,0.25134597,69590.0,69589.0,0.138884]
[1722229480782,0.18675401,69590.0,69589.0,0.598726]
[1722229480980,0.18675401,69590.0,69589.0,0.368805]
[1722229480981,0.22980597,69590.0,69589.0,0.368805]
[1722229481393,0.18675401,69590.0,69589.0,0.368805]
[1722229482397,0.22980295,69590.0,69589.0,0.368805]
[1722229483531,0.229802,69590.0,69589.0,0.368805]
[1722229483737,0.229802,69590.0,69589.0,0.598726]
[1722229483935,0.14444001,69590.0,69589.0,0.598726]
[1722229484133,0.14444001,69590.0,69589.0,0.828647]
[1722229487681,4.001e-05,69590.0,69589.0,0.828647]
[1722229488125,4.001e-05,69590.0,69589.0,0.817647]
[1722229490672,4.001e-05,69590.0,69589.0,1.047568]
[1722229490875,4.001e-05,69590.0,69589.0,0.817647]
[1722229491079,4.001e-05,69590.0,69589.0,1.024733]
[1722229491206,4.001e-05,69590.0,69589.0,1.294504]
[1722229491860,4.001e-05,69590.0,69589.0,1.41395062]
[1722229492268,4.001e-05,69590.0,69589.0,1.294504]
[1722229492925,4.001e-05,69590.0,69589.0,1.283504]
[1722229493554,0.0775,69602.0,69601.0,1.034464]
[1722229493757,0.0775,69602.0,69601.0,1.117964]
[1722229495110,0.0775,69602.0,69601.0,1.131964]
[1722229496302,0.0775,69602.0,69601.0,1.145964]
[1722229496799,0.05,69604.0,69603.0,0.804562]
[1722229498005,0.05,69604.0,69603.0,0.818562]
[1722229499102,0.05,69604.0,69603.0,0.832562]
[1722229501793,0.05,69604.0,69603.0,0.804562]
[1722229502004,0.05,69604.0,69603.0,0.818562]
[1722229502212,0.05,69604.0,69603.0,0.832562]
[1722229502561,0.05,69604.0,69603.0,0.818562]
[1722229502718,0.05,69604.0,69603.0,0.832562]
[1722229503288,0.05,69604.0,69603.0,0.818562]
[1722229503494,0.35345755,69604.0,69603.0,0.358812]
[1722229503937,0.35345755,69604.0,69603.0,0.372812]
[1722229504113,0.35345755,69604.0,69603.0,0.602687]
[1722229504976,0.35545755,69604.0,69603.0,0.028]
[1722229505150,0.44155445,69604.0,69603.0,0.028]
[1722229505360,0.44155445,69604.0,69603.0,0.142937]
[1722229505361,0.441571,69604.0,69603.0,0.142937]
[1722229505589,0.35545755,69604.0,69603.0,0.142937]
[1722229505908,0.30545755,69604.0,69603.0,0.028]
[1722229506024,0.41309936,69604.0,69603.0,0.014]
[1722229506224,0.41109936,69604.0,69603.0,0.024]
[1722229506625,0.41109936,69604.0,69603.0,0.01]
[1722229506969,0.46309936,69604.0,69603.0,0.01]
[1722229507156,0.36762692,69604.0,69603.0,0.01]
[1722229507328,0.36762691,69604.0,69603.0,0.018]
[1722229507535,0.35545755,69604.0,69603.0,0.018]
[1722229507958,0.44158003,69604.0,69603.0,0.018]
[1722229508135,0.37003644,69604.0,69603.0,0.018]
[1722229508528,0.283914,69604.0,69603.0,0.362812]
[1722229508893,0.39156165,69604.0,69603.0,0.362812]
[1722229509097,0.283914,69604.0,69603.0,0.352812]
[1722229509294,0.281914,69604.0,69603.0,0.352812]
[1722229509463,0.231914,69604.0,69603.0,0.354812]
[1722229509662,0.31803614,69604.0,69603.0,0.352812]
[1722229510122,0.31803614,69604.0,69603.0,0.365812]
[1722229510283,0.31803614,69604.0,69603.0,0.127937]
[1722229510485,0.31803614,69604.0,69603.0,0.368812]
[1722229511736,0.231914,69604.0,69603.0,0.368812]
[1722229511961,0.31803344,69604.0,69603.0,0.368812]
[1722229512168,0.33029118,69604.0,69603.0,0.368812]
[1722229512380,0.29149969,69604.0,69603.0,0.368812]
[1722229512712,0.27071623,69604.0,69603.0,0.598687]
[1722229512910,0.29150163,69604.0,69603.0,0.598687]
[1722229513119,0.226914,69604.0,69603.0,0.598687]
[1722229514340,0.226914,69604.0,69603.0,0.828562]
[1722229514579,0.227754,69604.0,69603.0,0.828562]
[1722229515384,0.12494,69604.0,69603.0,0.828562]
[1722229515970,0.14749062,69604.0,69603.0,0.828562]
[1722229516372,0.12494,69604.0,69603.0,0.828562]
[1722229516942,0.12494,69604.0,69603.0,0.815562]
[1722229517146,0.12494,69604.0,69603.0,0.829562]
[1722229517844,0.231054,69604.0,69603.0,0.6086929]
[1722229518080,0.231054,69604.0,69603.0,0.5946929]
[1722229518319,0.231054,69604.0,69603.0,0.5836929]
[1722229519489,0.231054,69604.0,69603.0,0.014]
[1722229519943,0.24327999,69604.0,69603.0,0.014]
[1722229520207,0.31583162,69604.0,69603.0,0.014]
[1722229520438,0.31783162,69604.0,69603.0,0.0295542]
[1722229520673,0.40192628,69604.0,69603.0,0.142937]
[1722229520898,0.26583162,69604.0,69603.0,0.372812]
[1722229521130,0.25360563,69604.0,69603.0,0.372812]
[1722229521356,0.33067335,69604.0,69603.0,0.372812]
[1722229521562,0.25360563,69604.0,69603.0,0.602687]
[1722229521828,0.33067272,69604.0,69603.0,0.602687]
[1722229522056,0.31820022,69604.0,69603.0,0.602687]
[1722229522286,0.26622343,69604.0,69603.0,0.602687]
[1722229522508,0.35234955,69604.0,69603.0,0.372812]
[1722229522733,0.2436718,69604.0,69603.0,0.602687]
[1722229523175,0.29566014,69604.0,69603.0,0.602687]
[1722229523646,0.29566014,69604.0,69603.0,0.372812]
[1722229523647,0.29566916,69604.0,69603.0,0.372812]
[1722229523881,0.24342556,69604.0,69603.0,0.372812]
[1722229524332,0.231054,69604.0,69603.0,0.372812]
[1722229524560,0.32953479,69604.0,69603.0,0.372812]
[1722229525197,0.2433698,69604.0,69603.0,0.372812]
[1722229525899,0.26592107,69604.0,69603.0,0.372812]
[1722229526132,0.2433698,69604.0,69603.0,0.028]
[1722229526375,0.3583048,69604.0,69603.0,0.028]
[1722229527071,0.2433698,69604.0,69603.0,0.028]
[1722229527521,0.24333809,69604.0,69603.0,0.028]
[1722229529313,0.26588978,69604.0,69603.0,0.028]
[1722229529766,0.61069578,69604.0,69603.0,0.028]
[1722229530253,0.73994327,69604.0,69603.0,0.028]
[1722229530701,0.71742383,69604.0,69603.0,0.028]
[1722229531177,0.71746655,69604.0,69603.0,0.028]
[1722229531421,0.42266055,69604.0,69603.0,0.028]
[1722229531683,0.29327738,69604.0,69603.0,0.028]
[1722229531917,0.24327738,69604.0,69603.0,0.028]
[1722229532163,0.20096338,69604.0,69603.0,0.028]
[1722229532374,0.24327738,69604.0,69603.0,0.028]
[1722229533037,0.20096338,69604.0,69603.0,0.3743662]
[1722229533209,0.18874,69604.0,69603.0,0.372812]
[1722229533408,0.24330933,69604.0,69603.0,0.372812]
[1722229533749,0.26586042,69604.0,69603.0,0.372812]
[1722229534176,0.243309,69604.0,69603.0,0.372812]
[1722229534575,0.200995,69604.0,69603.0,0.372812]
[1722229535325,0.243309,69604.0,69603.0,0.372812]
[1722229535705,0.200995,69604.0,69603.0,0.372812]
[1722229536332,0.243309,69604.0,69603.0,0.372812]
[1722229536474,0.200995,69604.0,69603.0,0.372812]
[1722229536926,0.18874,69604.0,69603.0,0.372812]
[1722229537124,0.20073702,69604.0,69603.0,0.372812]
[1722229537369,0.22328821,69604.0,69603.0,0.372812]
[1722229537782,0.29305102,69604.0,69603.0,0.38218997]
[1722229537980,0.24305102,69604.0,69603.0,0.38218997]
[1722229539947,0.24305102,69604.0,69603.0,0.372812]
[1722229540270,0.24289163,69604.0,69603.0,0.372812]
[1722229541085,0.26544291,69604.0,69603.0,0.372812]
[1722229541290,0.31544291,69604.0,69603.0,0.142937]
[1722229541490,0.43237791,69604.0,69603.0,0.028]
[1722229541704,0.89211991,69604.0,69603.0,0.028]
[1722229541918,1.19112578,69604.0,69603.0,0.028]
[1722229542126,1.1685745,69604.0,69603.0,0.028]
[1722229542750,1.1685745,69604.0,69603.0,0.014]
[1722229542956,0.094314,69591.0,69590.0,0.0022479]
[1722229543161,0.237014,69591.0,69590.0,0.0022479]
[1722229543364,0.25641574,69591.0,69590.0,0.0022479]
[1722229543572,0.25641574,69591.0,69590.0,0.1172069]
[1722229543853,0.20641574,69591.0,69590.0,0.3471249]
[1722229544101,0.16410174,69591.0,69590.0,0.115883]
[1722229544248,0.25641574,69591.0,69590.0,0.1174372]
[1722229544458,0.16410174,69591.0,69590.0,0.1174372]
[1722229544666,0.20641574,69591.0,69590.0,0.1174372]
[1722229545019,0.20641574,69591.0,69590.0,0.1308947]
[1722229545426,0.20641574,69591.0,69590.0,0.129883]
[1722229545674,0.20641574,69591.0,69590.0,0.59081093]
[1722229545675,0.27304957,69591.0,69590.0,0.59081093]
[1722229545900,0.25049442,69591.0,69590.0,0.589719]
[1722229546024,0.25049442,69591.0,69590.0,0.5912732]
[1722229546229,0.1427,69591.0,69590.0,0.5912732]
[1722229546571,0.29280807,69591.0,69590.0,0.5912732]
[1722229546780,0.185014,69591.0,69590.0,0.589719]
[1722229547202,0.185014,69591.0,69590.0,0.603719]
[1722229547768,0.185054,69591.0,69590.0,0.603719]
[1722229548221,0.48615503,69591.0,69590.0,0.028924]
[1722229548430,0.60311203,69591.0,69590.0,0.028924]
[1722229548630,0.73246491,69591.0,69590.0,0.028924]
[1722229549087,0.68046491,69591.0,69590.0,0.028924]
[1722229549326,0.75502093,69591.0,69590.0,0.028924]
[1722229549557,0.60315084,69591.0,69590.0,0.028924]
[1722229550144,0.60315037,69591.0,69590.0,0.028924]
[1722229550574,0.55315037,69591.0,69590.0,0.028924]
[1722229550775,0.60315037,69591.0,69590.0,0.028924]
[1722229550946,0.37323637,69591.0,69590.0,0.028924]
[1722229551103,0.83306437,69591.0,69590.0,0.028924]
[1722229551507,0.78306437,69591.0,69590.0,0.028924]
[1722229551749,0.83306437,69591.0,69590.0,0.028924]
[1722229551964,0.83310603,69591.0,69590.0,0.028924]
[1722229552234,1.08602003,69591.0,69590.0,0.028924]
[1722229552616,1.08603454,69591.0,69590.0,0.028924]
[1722229552778,1.10859126,69591.0,69590.0,0.028924]
[1722229552986,1.05859126,69591.0,69590.0,0.028924]
[1722229553345,1.10859126,69591.0,69590.0,0.014924]
[1722229553702,1.10859126,69591.0,69590.0,0.018924]
[1722229554249,1.05859126,69591.0,69590.0,0.004924]
[1722229554457,0.04387826,69591.0,69590.0,0.119883]
[1722229554690,0.04387826,69591.0,69590.0,0.349801]
[1722229554691,0.02259672,69591.0,69590.0,0.349801]
[1722229555118,0.02259672,69591.0,69590.0,0.579719]
[1722229555490,0.02259672,69591.0,69590.0,0.58548]
[1722229556079,0.02259672,69591.0,69590.0,0.58848]
[1722229556283,0.02259672,69591.0,69590.0,0.58448]
[1722229556481,0.02259672,69591.0,69590.0,0.59248]
[1722229556843,0.02259672,69591.0,69590.0,0.60148]
[1722229557395,0.02259672,69591.0,69590.0,0.831398]
[1722229558278,0.02259672,69591.0,69590.0,0.60148]
[1722229558554,0.02259672,69591.0,69590.0,0.5920342]
[1722229558755,0.02259672,69591.0,69590.0,0.60448]
[1722229558979,0.02259672,69591.0,69590.0,0.59048]
[1722229559121,0.02259672,69591.0,69590.0,0.58148]
[1722229559326,0.02259672,69591.0,69590.0,0.5970342]
[1722229559551,4e-05,69591.0,69590.0,0.5920342]
[1722229560006,4e-05,69591.0,69590.0,0.5830342]
[1722229560212,4e-05,69591.0,69590.0,0.8129522]
[1722229560443,4e-05,69591.0,69590.0,0.825398]
[1722229560627,4e-05,69591.0,69590.0,0.839398]
[1722229561390,0.06457321,69600.0,69590.0,0.839398]
[1722229561391,0.10688844,69600.0,69599.0,0.114944]
[1722229561608,0.06457444,69600.0,69599.0,0.57472]
[1722229561824,0.08609926,69601.0,69600.0,0.344827]
[1722229561825,0.10688844,69601.0,69600.0,0.344827]
[1722229562040,0.10688844,69601.0,69600.0,0.574712]
[1722229562245,0.10688844,69601.0,69600.0,0.804597]
[1722229562837,0.042314,69601.0,69600.0,0.574712]
[1722229563042,0.06486638,69601.0,69600.0,0.804597]
[1722229563369,0.06486638,69601.0,69600.0,0.817597]
[1722229563783,0.06486638,69601.0,69600.0,0.804597]
[1722229564114,0.06486638,69601.0,69600.0,0.817597]
[1722229564311,0.10791977,69601.0,69600.0,0.817597]
[1722229564512,0.10792371,69601.0,69600.0,0.804597]
[1722229564941,0.10792371,69601.0,69600.0,0.818597]
[1722229565515,0.02255238,69601.0,69600.0,0.818597]
[1722229565714,0.04584,69604.0,69600.0,0.818597]
[1722229565715,0.08889733,69604.0,69603.0,0.114937]
[1722229565916,0.04584,69604.0,69603.0,0.574687]
[1722229566145,0.04584,69604.0,69603.0,0.804562]
[1722229568760,0.06839028,69604.0,69603.0,0.804562]
[1722229570528,0.06839028,69604.0,69603.0,0.818562]
[1722229570739,0.06839028,69604.0,69603.0,0.832562]
[1722229571010,0.06839028,69604.0,69603.0,0.818562]
[1722229571270,0.06839028,69604.0,69603.0,0.804562]
[1722229571399,0.06839028,69604.0,69603.0,0.818562]
[1722229571599,0.06839028,69604.0,69603.0,0.832562]
[1722229572041,0.11070428,69604.0,69603.0,0.818562]
[1722229572195,0.06839028,69604.0,69603.0,0.818562]
[1722229572406,0.06839028,69604.0,69603.0,0.832562]
[1722229572805,0.06839028,69604.0,69603.0,0.84186996]
[1722229573671,0.06839028,69604.0,69603.0,0.82786996]
[1722229574018,0.06839028,69604.0,69603.0,0.84186996]
[1722229574214,0.06839028,69604.0,69603.0,0.82786996]
[1722229575058,0.06839028,69604.0,69603.0,0.84186996]
[1722229575260,0.04584,69604.0,69603.0,1.18384496]
[1722229575529,0.04584,69604.0,69603.0,1.16353096]
[1722229575686,0.04584,69604.0,69603.0,1.17753096]
[1722229576201,0.04584,69604.0,69603.0,1.16353096]
[1722229577594,0.04584,69604.0,69603.0,1.19153096]
[1722229578105,0.04584,69604.0,69603.0,1.16353096]
[1722229578294,0.04584,69604.0,69603.0,1.19153096]
[1722229578495,0.04584,69604.0,69603.0,1.17753096]
[1722229579320,0.04584,69604.0,69603.0,1.11984496]
[1722229579520,0.04584,69604.0,69603.0,1.12114496]
[1722229579899,0.04584,69604.0,69603.0,1.17883096]
[1722229580686,0.04584,69604.0,69603.0,1.16483096]
[1722229580889,0.04584,69604.0,69603.0,1.17883096]
[1722229581303,0.04584,69604.0,69603.0,1.16483096]
[1722229581507,0.04584,69604.0,69603.0,1.09374496]
[1722229581713,0.06838925,69604.0,69603.0,1.12174496]
[1722229581894,0.06838925,69604.0,69603.0,1.10774496]
[1722229582227,0.06838925,69604.0,69603.0,0.89186996]
[1722229582465,0.06838925,69604.0,69603.0,0.87786996]
[1722229582890,0.06838925,69604.0,69603.0,0.89186996]
[1722229583095,0.06838925,69604.0,69603.0,0.87786996]
[1722229583747,0.04584,69604.0,69603.0,0.86386996]
[1722229584093,0.04584,69604.0,69603.0,0.87786996]
[1722229584518,0.04584,69604.0,69603.0,0.89186996]
[1722229584704,0.04584,69604.0,69603.0,0.88555596]
[1722229584905,0.04584,69604.0,69603.0,0.86386996]
[1722229585145,0.04584,69604.0,69603.0,0.87786996]
[1722229586335,0.04584,69604.0,69603.0,0.89186996]
[1722229586737,0.04584,69604.0,69603.0,0.87786996]
[1722229587108,0.06838938,69604.0,69603.0,0.87786996]
[1722229587737,0.06838938,69604.0,69603.0,0.86386996]
[1722229587955,0.06838938,69604.0,69603.0,0.89186996]
[1722229588176,0.04584,69604.0,69603.0,0.89186996]
[1722229588365,0.04584,69604.0,69603.0,0.86386996]
[1722229588654,0.04584,69604.0,69603.0,0.89186996]
[1722229588946,0.04584,69604.0,69603.0,0.87786996]
[1722229589169,0.04584,69604.0,69603.0,0.89186996]
[1722229589810,0.04584,69604.0,69603.0,0.87786996]
[1722229590249,0.04584,69604.0,69603.0,0.89186996]
[1722229591483,0.06838962,69604.0,69603.0,0.89186996]
[1722229591683,0.04584,69604.0,69603.0,0.89186996]
[1722229592059,0.04584,69604.0,69603.0,0.89955596]
[1722229592258,0.12084,69604.0,69603.0,0.84186996]
[1722229593062,0.12084,69604.0,69603.0,0.61199496]
[1722229593261,0.213154,69604.0,69603.0,0.61199496]
[1722229593637,0.277854,69604.0,69603.0,0.38211996]
[1722229593849,0.277854,69604.0,69603.0,0.028]
[1722229594050,0.29965221,69604.0,69603.0,0.014]
[1722229594454,0.29965221,69604.0,69603.0,0.028]
[1722229595107,0.094314,69602.0,69601.0,0.0015542]
[1722229595330,0.234514,69601.0,69600.0,0.0015542]
[1722229595536,0.236314,69600.0,69599.0,0.1164982]
[1722229595748,0.236314,69600.0,69599.0,0.0015542]
[1722229595967,0.144,69595.0,69593.0,0.229907]
[1722229596188,0.144,69595.0,69594.0,0.4464102]
[1722229596848,0.144,69595.0,69594.0,0.444856]
[1722229597059,0.144,69595.0,69594.0,0.44594539]
[1722229597264,0.144,69595.0,69594.0,0.444856]
[1722229598669,0.144,69595.0,69594.0,0.67476]
[1722229599112,0.144,69595.0,69594.0,0.57476]
[1722229599548,0.16655384,69595.0,69594.0,0.57476]
[1722229599748,0.144,69595.0,69594.0,0.57476]
[1722229599970,0.14404,69595.0,69594.0,0.58876]
[1722229603155,0.16659371,69595.0,69594.0,0.58876]
[1722229603373,0.14404,69595.0,69594.0,0.58876]
[1722229603814,0.14404,69595.0,69594.0,0.014]
[1722229603815,0.37098938,69595.0,69594.0,0.014]
[1722229604021,0.25603938,69595.0,69594.0,0.014]
[1722229604266,0.37098938,69595.0,69594.0,0.014]
[1722229604445,0.25603938,69595.0,69594.0,0.014]
[1722229605009,0.233614,69593.0,69592.0,0.114955]
[1722229606442,0.31976619,69593.0,69592.0,0.114955]
[1722229606645,0.34232153,69593.0,69592.0,0.114955]
[1722229607736,0.29232153,69593.0,69592.0,0.114955]
[1722229608020,0.076,69591.0,69590.0,0.351562]
[1722229608185,0.118314,69591.0,69590.0,0.351562]
[1722229608390,0.23291265,69591.0,69590.0,0.351562]
[1722229608756,0.23291214,69591.0,69590.0,0.351562]
[1722229609197,0.23291194,69591.0,69590.0,0.351562]
[1722229610022,0.168314,69591.0,69590.0,0.351562]